bitfinex/quotes_ETHUSD_20260120
["timestamp","ask_amount","ask_price","bid_price","bid_amount"]
[1768941010655,0.91188614,3003.9,3003.1,0.90706958]
[1768941011051,0.91188614,3003.9,3002.5,0.002]
[1768941011259,0.91188614,3003.8,3002.5,0.90906958]
[1768941011780,0.91188614,3003.8,3002.5,0.00100091]
[1768941011982,0.91188614,3003.6,3002.5,0.00100091]
[1768941012280,0.91188614,3003.6,3002.1,0.002]
[1768941012281,0.91188614,3003.4,3002.1,0.002]
[1768941012479,6.65801964,3003.9,3002.1,0.002]
[1768941012480,0.91188614,3003.2,3002.1,0.90906958]
[1768941012680,0.91188614,3003.0,3002.1,0.90906958]
[1768941012984,0.91188614,3003.0,3002.1,0.002]
[1768941014663,0.91188614,3003.0,3002.2,0.90706958]
[1768941014863,0.535,3003.3,3002.4,0.90706958]
[1768941015356,0.535,3003.3,3002.6,0.90181454]
[1768941015759,1.51389333,3003.3,3002.6,0.90181454]
[1768941016497,0.97889333,3003.2,3002.5,0.002]
[1768941016694,0.97889333,3003.2,3002.1,0.002]
[1768941017191,0.97889333,3003.0,3002.1,0.002]
[1768941019672,0.535,3002.9,3002.1,0.002]
[1768941019874,1.51389333,3002.9,3002.1,0.90381454]
[1768941020274,0.535,3002.9,3002.1,0.90381454]
[1768941021094,0.97889333,3003.4,3002.3,0.90181454]
[1768941021401,0.535,3003.3,3002.3,0.90181454]
[1768941021795,0.97889333,3003.2,3002.3,0.90181454]
[1768941021971,0.97889333,3003.2,3002.1,0.90381454]
[1768941022171,0.97889333,3003.2,3002.1,0.002]
[1768941024113,0.97889333,3003.1,3001.7,0.90181454]
[1768941024310,0.97889333,3002.9,3001.7,0.90181454]
[1768941025108,0.535,3002.8,3002.0,0.90181454]
[1768941025285,0.97889333,3002.7,3002.0,0.90181454]
[1768941025489,0.97889333,3002.7,3001.8,0.90181454]
[1768941025690,0.97889333,3002.7,3001.6,4.23329321]
[1768941026010,0.97889333,3002.7,3001.7,3.33142524]
[1768941026180,0.97889333,3002.7,3001.7,4.23325289]
[1768941026381,0.97889333,3002.7,3001.8,3.3313306]
[1768941026582,0.97889333,3002.7,3001.7,4.23320827]
[1768941027008,0.535,3002.7,3001.9,0.90181454]
[1768941027209,0.97889333,3003.0,3002.4,0.002]
[1768941027411,0.001,3002.9,3002.4,0.90381454]
[1768941027780,0.001,3002.9,3002.4,0.72735126]
[1768941027981,0.001,3002.9,3002.4,0.57886463]
[1768941028188,0.001,3002.9,3002.2,0.90181454]
[1768941028486,0.97989333,3002.9,3002.0,0.002]
[1768941028692,0.97989333,3002.9,3002.0,0.90381454]
[1768941029591,0.97989333,3002.9,3002.0,0.002]
[1768941029812,0.97889333,3002.8,3002.0,0.002]
[1768941029989,0.97889333,3002.6,3001.7,0.90181454]
[1768941032541,0.97889333,3002.6,3001.4,0.002]
[1768941033032,0.97889333,3002.6,3001.4,0.90381454]
[1768941035103,0.97889333,3002.6,3001.4,4.23558247]
[1768941036131,0.97889333,3002.6,3001.4,0.90381454]
[1768941036331,0.97889333,3002.4,3001.4,0.90381454]
[1768941036530,0.97889333,3002.2,3001.4,0.002]
[1768941037106,0.97889333,3002.2,3001.3,0.002]
[1768941037652,0.535,3002.3,3001.2,0.002]
[1768941037653,0.97889333,3002.0,3001.2,0.002]
[1768941037808,0.97889333,3002.0,3001.1,6.15e-06]
[1768941038013,0.97889333,3001.8,3001.1,6.15e-06]
[1768941039068,0.97889333,3001.8,3000.4,0.90181454]
[1768941039231,0.97889333,3001.8,3000.4,3.33287016]
[1768941039542,0.97889333,3001.7,3000.7,0.90181454]
[1768941040224,0.97889333,3001.7,3000.8,0.90181454]
[1768941040549,1.51389333,3001.7,3001.0,0.90181454]
[1768941041243,0.97889333,3001.6,3000.8,0.90181454]
[1768941041618,0.97889333,3001.6,3000.8,4.23424009]
[1768941041819,0.97889333,3001.6,3000.8,0.90181454]
[1768941043869,0.97889333,3001.6,3000.5,0.90181454]
[1768941044015,0.97889333,3001.6,3000.3,0.90182274]
[1768941044214,0.97889333,3001.6,3000.3,4.23482039]
[1768941044646,0.97889333,3001.6,3000.3,0.90182274]
[1768941044945,0.97889333,3001.6,3000.3,8.2e-06]
[1768941044946,0.9159669,3001.5,3000.3,8.2e-06]
[1768941045148,0.9144388,3001.3,3000.3,8.2e-06]
[1768941046434,0.535,3001.2,3000.3,8.2e-06]
[1768941046750,0.535,3001.3,3000.4,0.95443974]
[1768941048360,0.9144388,3001.4,3000.4,0.95443974]
[1768941048539,1.4494388,3001.4,3000.4,0.95443974]
[1768941049061,0.9144388,3001.3,3000.3,8.2e-06]
[1768941051066,0.9144388,3001.3,3000.6,0.002]
[1768941051277,0.9144388,3001.3,3000.3,8.2e-06]
[1768941051962,0.9144388,3001.2,3000.3,8.2e-06]
[1768941052535,1.4494388,3001.1,3000.3,8.2e-06]
[1768941052939,0.535,3001.1,3000.3,8.2e-06]
[1768941053141,0.9144388,3001.0,3000.3,8.2e-06]
[1768941055275,0.9144388,3001.0,2999.9,0.2355703]
[1768941055276,0.9144388,3000.9,2999.9,0.002]
[1768941055570,0.9144388,3000.7,2999.9,0.002]
[1768941055777,0.9144388,3000.7,2999.8,0.002]
[1768941056939,0.9144388,3000.7,2999.7,0.95443974]
[1768941057139,0.9144388,3000.6,2999.5,0.002]
[1768941057344,3.3325653,3000.7,2999.5,0.002]
[1768941057345,0.9144388,3000.4,2999.5,0.002]
[1768941058183,0.9144388,3000.4,2999.4,0.2335703]
[1768941059452,0.9144388,3000.4,2999.4,0.70663958]
[1768941060063,0.9144388,3000.4,2999.4,0.2335703]
[1768941060263,0.9144388,3000.4,2999.3,0.002]
[1768941060463,0.9144388,3000.4,2999.4,0.85399531]
[1768941060662,0.9144388,3001.0,2999.5,0.47306928]
[1768941060857,0.9144388,3000.8,2999.7,0.47306928]
[1768941062188,3.508,3002.1,2999.7,0.47306928]
[1768941062189,0.9144388,3001.3,3000.1,0.47306928]
[1768941062384,0.9144388,3001.3,3000.3,0.47306928]
[1768941062582,0.9144388,3001.3,3000.2,6.66622224]
[1768941062583,0.9144388,3001.3,3000.5,0.47306928]
[1768941063857,0.001,3001.0,3000.5,0.47306928]
[1768941064258,0.9154388,3001.0,2999.7,0.47506928]
[1768941064776,0.9154388,3001.0,2999.8,3.33347399]
[1768941065000,0.9154388,3001.0,3000.0,3.33331948]
[1768941065286,0.001,3001.0,3000.3,0.47306928]
[1768941065501,0.001,3001.0,3000.5,0.47306928]
[1768941065798,0.001,3002.3,3000.6,0.47206928]
[1768941065799,0.9144388,3001.6,3000.6,0.47206928]
[1768941066181,0.9144388,3001.6,3000.4,3.33287256]
[1768941066390,0.9144388,3001.6,3000.3,3.80503497]
[1768941066687,0.9144388,3001.6,3000.4,0.47206928]
[1768941068880,0.9144388,3001.4,3000.0,0.47206928]
[1768941069083,0.9144388,3001.4,3000.1,3.33314674]
[1768941069391,0.9144388,3001.4,3000.2,0.47206928]
[1768941070193,0.9144388,3001.4,3000.2,3.80517031]
[1768941070391,0.9144388,3001.4,3000.2,0.47206928]
[1768941071081,1.4494388,3001.3,3000.3,3.33299988]
[1768941071280,1.4494388,3001.3,3000.4,0.47206928]
[1768941071896,3.33114045,3002.0,3000.4,0.47206928]
[1768941071897,0.9144388,3001.5,3000.4,0.47206928]
[1768941072065,0.9144388,3001.5,3000.5,0.47206928]
[1768941074890,0.9144388,3001.5,3000.6,0.47206928]
[1768941075170,0.93457035,3001.8,3000.7,0.47206928]
[1768941076208,0.93457035,3002.0,3000.8,0.47206928]
[1768941076806,0.001,3001.8,3000.8,0.47206928]
[1768941077001,0.93557035,3001.8,3000.8,0.47206928]
[1768941077593,0.93557035,3001.8,3000.9,0.47206928]
[1768941078203,0.93557035,3001.8,3000.5,0.47206928]
[1768941078879,0.93457035,3001.6,3000.5,0.47206928]
[1768941079320,0.93457035,3001.6,3000.5,3.80484577]
[1768941079619,0.93457035,3001.6,3000.6,0.47206928]
[1768941082119,0.93457035,3001.6,3000.6,3.80466088]
[1768941082281,0.93457035,3001.6,3000.7,0.47206928]
[1768941082482,0.93457035,3001.6,3000.8,0.85253537]
[1768941083123,0.93457035,3001.6,3000.8,0.38046609]
[1768941083912,0.93457035,3001.6,3000.8,0.85253537]
[1768941084142,0.93457035,3001.6,3000.9,0.47206928]
[1768941085206,0.93457035,3001.6,3000.7,0.536]
[1768941085642,0.93457035,3001.6,3000.6,3.33256935]
[1768941085829,0.93457035,3001.6,3000.6,3.80463863]
[1768941086444,0.93457035,3001.6,3000.7,0.47206928]
[1768941089058,0.93457035,3001.6,3000.5,0.47206928]
[1768941089553,0.93457035,3001.6,3000.8,0.002]
[1768941089718,0.001,3001.3,3000.8,0.002]
[1768941089917,0.93457035,3001.2,3000.8,0.002]
[1768941090118,0.93457035,3001.2,3000.5,0.002]
[1768941092024,0.0016,3000.9,3000.5,0.002]
[1768941092225,0.93617035,3000.9,3000.5,0.002]
[1768941093444,0.0016,3000.9,3000.5,0.002]
[1768941093988,0.93617035,3000.9,3000.5,0.002]
[1768941094349,0.93617035,3000.9,3000.0,4.34130946]
[1768941094890,0.93617035,3000.9,2999.9,0.002]
[1768941095776,0.93457035,3000.8,2999.9,0.002]
[1768941095959,0.93457035,3000.6,2999.7,0.002]
[1768941096359,0.93457035,3000.5,2999.6,0.002]
[1768941099247,1.36143012,3000.7,2999.6,0.47406928]
[1768941099450,0.0016,3000.9,3000.0,0.47206928]
[1768941101482,0.0016,3000.9,3000.2,0.47206928]
[1768941102683,0.0026,3001.8,3000.2,0.47206928]
[1768941102684,0.93557035,3001.3,3000.5,0.0008]
[1768941107563,0.97381845,3001.2,3000.2,0.0008]
[1768941108581,0.97381845,3001.2,3000.2,0.47366928]
[1768941109721,0.001,3001.3,3000.4,0.47286928]
[1768941109880,0.001,3001.3,3000.6,0.47286928]
[1768941112082,0.97481845,3001.3,3000.3,0.47286928]
[1768941112300,0.97481845,3001.3,3000.3,1.00886928]
[1768941112796,0.97481845,3001.3,3000.3,0.47286928]
[1768941112997,0.97481845,3001.3,3000.3,4.24015432]
[1768941113210,0.97481845,3001.3,3000.4,3.8056804]
[1768941113417,0.97481845,3001.3,3000.3,3.76725907]
[1768941113914,0.001,3000.9,3000.3,4.24012835]
[1768941114114,0.001,3000.9,3000.3,0.90715777]
[1768941114737,0.97481845,3000.9,3000.2,0.0008]
[1768941116103,1.00831845,3000.9,3000.2,0.0008]
[1768941116706,0.97381845,3001.2,3000.2,0.0008]
[1768941117716,0.97381845,3001.2,3000.2,0.47366928]
[1768941118319,0.001,3001.3,3000.4,0.47286928]
[1768941118518,0.001,3001.3,3000.5,0.47286928]
[1768941119712,0.97481845,3001.3,3000.4,0.71396693]
[1768941120245,0.97481845,3001.3,3000.2,0.0008]
[1768941120546,0.97481845,3001.3,3000.2,3.33390861]
[1768941120717,0.97381845,3001.2,3000.2,3.33390861]
[1768941121440,0.97381845,3001.2,3000.2,0.0008]
[1768941122224,0.97381845,3001.2,3000.2,3.33390837]
[1768941122418,0.97381845,3001.2,3000.2,0.0008]
[1768941123035,0.97381845,3001.0,3000.2,0.0008]
[1768941125062,0.97381845,3000.9,3000.2,0.47366928]
[1768941125224,6.33,3001.0,3000.2,0.47366928]
[1768941125427,0.97381845,3000.9,3000.2,0.0008]
[1768941125751,1.70420029,3000.8,3000.5,0.002]
[1768941125952,0.97381845,3000.7,3000.5,4.7e-07]
[1768941127250,0.97381845,3000.7,3000.1,0.002]
[1768941127441,0.97381845,3000.6,2999.6,0.002]
[1768941129932,0.97381845,3000.6,2999.6,0.47766928]
[1768941130111,0.97381845,3000.6,2999.7,1.19040763]
[1768941130829,6.33,3000.7,2999.9,0.47566928]
[1768941131353,6.33,3000.7,3000.0,0.49272722]
[1768941131719,7.30381845,3000.7,3000.0,0.49272722]
[1768941132534,7.30381845,3000.7,3000.0,0.47566928]
[1768941132711,8.16073848,3000.7,3000.0,0.47566928]
[1768941133940,7.30381845,3000.7,3000.0,0.47566928]
[1768941134444,7.30381845,3000.7,3000.0,3.80894975]
[1768941135252,7.30381845,3000.7,3000.0,0.47566928]
[1768941137527,7.30381845,3000.7,3000.1,0.47566928]
[1768941137528,6.33,3000.7,3000.1,0.47566928]
[1768941137854,6.331,3000.9,3000.2,0.47566928]
[1768941138218,0.96248368,3001.3,3000.2,0.47566928]
[1768941138627,0.001,3000.7,3000.2,0.47566928]
[1768941138832,0.96248368,3001.3,3000.2,0.47566928]
[1768941139854,0.96248368,3001.3,3000.3,0.47566928]
[1768941140025,0.96248368,3001.3,3000.4,0.3808679]
[1768941142054,0.96248368,3001.3,3000.4,3.71375331]
[1768941142568,0.96248368,3001.3,3000.5,0.47566928]
[1768941142853,6.33,3001.7,3000.5,0.47566928]
[1768941142854,0.96148368,3001.6,3000.5,0.47566928]
[1768941144150,0.96148368,3001.6,3000.7,0.47566928]
[1768941144454,0.96148368,3001.6,3000.8,0.38083361]
[1768941145022,0.96148368,3001.5,3000.5,0.47566928]
[1768941145221,0.96148368,3001.5,3000.4,3.3328366]
[1768941145222,0.96148368,3001.5,3000.2,3.33304106]
[1768941145431,0.96148368,3001.5,3000.1,3.33320374]
[1768941145649,0.96148368,3001.5,3000.0,3.8692772]
[1768941145829,0.96148368,3001.3,3000.1,3.76770343]
[1768941147229,0.96148368,3001.3,3000.1,0.43449465]
[1768941147453,0.96148368,3001.2,3000.1,0.43449465]
[1768941147636,0.96148368,3001.2,3000.0,3.33332186]
[1768941147837,0.96148368,3001.2,3000.1,3.33319211]
[1768941148039,0.96148368,3001.2,3000.0,6.66666666]
[1768941148229,0.96148368,3001.2,3000.0,3.80900261]
[1768941148955,0.96148368,3001.2,2999.8,4.34513361]
[1768941149143,0.96148368,3001.0,2999.9,7.57706283]
[1768941149325,0.96148368,3001.0,2999.9,4.24361839]
[1768941149528,0.96148368,3000.9,2999.9,4.24361839]
[1768941149742,0.96148368,3000.9,2999.9,0.91018264]
[1768941150137,0.96148368,3000.9,2999.9,4.24358874]
[1768941150434,0.96148368,3000.8,2999.9,4.24358874]
[1768941150634,0.96148368,3000.8,3000.4,0.002]
[1768941150952,0.96148368,3000.8,3000.0,0.002]
[1768941151527,0.96148368,3000.6,2999.6,0.002]
[1768941151731,4.08148368,3000.6,2999.6,0.002]
[1768941152024,0.96148368,3000.4,2999.6,0.002]
[1768941152764,0.96148368,3000.4,2999.5,0.002]
[1768941153060,0.96148368,3000.4,2999.3,0.002]
[1768941153465,0.96148368,3000.4,2999.3,0.9659241]
[1768941154735,3.33225135,3001.0,2999.3,0.9659241]
[1768941154736,0.96148368,3001.1,2999.9,0.9639241]
[1768941154937,0.96148368,3001.1,3000.0,0.9639241]
[1768941155667,0.96148368,3001.1,2999.4,6.66800026]
[1768941155836,0.96148368,3001.1,2999.8,1.4999241]
[1768941157465,0.96148368,3001.1,2999.9,4.29736854]
[1768941157767,0.96148368,3001.1,3000.0,0.57972926]
[1768941158237,0.96148368,3001.1,3000.0,1.54365336]
[1768941159357,0.96148368,3001.1,3000.1,3.33322222]
[1768941159558,1.49548368,3001.1,3000.2,0.9639241]
[1768941160563,0.96148368,3001.0,3000.2,0.9639241]
[1768941160756,0.96148368,3001.0,3000.3,0.42971463]
[1768941162257,0.96148368,3001.2,3000.4,0.9639241]
[1768941162572,6.33,3001.5,3000.4,0.9639241]
[1768941162573,0.001,3000.8,3000.4,0.9639241]
[1768941162869,0.96148368,3001.4,3000.5,0.9639241]
[1768941163543,0.96148368,3001.4,3000.3,7.09570076]
[1768941163544,0.96148368,3001.6,3000.7,0.9639241]
[1768941163866,0.96148368,3001.6,3000.9,0.9639241]
[1768941164366,0.96148368,3001.6,3000.3,0.42971463]
[1768941164536,0.96148368,3001.6,3000.3,3.33299548]
[1768941164732,0.96148368,3001.6,3000.3,0.92428769]
[1768941165164,0.95400647,3001.5,3000.1,4.78259436]
[1768941165373,0.95400647,3001.5,3000.2,0.91342485]
[1768941165572,0.95400647,3001.5,3000.4,0.91342485]
[1768941165887,0.0026,3001.8,3000.1,0.68644148]
[1768941165888,0.78700647,3001.3,3000.1,0.68644148]
[1768941167541,0.78700647,3001.3,3000.2,3.33311112]
[1768941167839,0.78700647,3001.3,3000.2,4.0195526]
[1768941168365,0.78700647,3001.3,3000.2,0.68644148]
[1768941169971,0.78700647,3001.3,3000.0,4.55575058]
[1768941170274,0.78700647,3001.3,3000.2,4.01954682]
[1768941170646,0.78700647,3001.3,3000.1,0.45557506]
[1768941170846,0.78700647,3001.3,3000.0,0.536]
[1768941170847,0.95400647,3001.2,3000.0,0.536]
[1768941171254,0.95400647,3001.2,3000.1,0.68644148]
[1768941171453,0.95400647,3001.2,3000.1,4.01965825]
[1768941171880,0.95400647,3001.2,2999.9,0.68644148]
[1768941172061,0.95400647,3001.1,2999.6,4.02018111]
[1768941172374,3.33205145,3001.2,2999.7,4.42232463]
[1768941172375,0.95400647,3000.9,2999.7,4.42232463]
[1768941172751,0.95400647,3000.9,2999.7,1.08865959]
[1768941173257,0.95400647,3000.9,2999.7,4.42228974]
[1768941173654,0.95400647,3000.9,2999.7,1.08865959]
[1768941173843,0.95400647,3000.9,2999.7,0.68644148]
[1768941174268,0.95400647,3000.9,2999.5,4.02228408]
[1768941174478,0.95400647,3000.9,2999.5,0.68844148]
[1768941175068,0.95400647,3000.9,2999.9,0.002]
[1768941175269,0.95400647,3000.9,2999.6,0.002]
[1768941175780,0.95400647,3000.9,2999.6,0.40442779]
[1768941175974,0.95400647,3000.9,2999.6,0.002]
[1768941176472,0.95400647,3000.8,2999.6,0.002]
[1768941176774,0.95400647,3000.6,2999.6,0.002]
[1768941178386,0.95400647,3000.4,2999.6,0.68844148]
[1768941178564,0.534,3000.3,2999.6,0.68844148]
[1768941178965,1.48800647,3000.3,2999.6,0.68844148]
[1768941179488,0.95400647,3000.3,2999.6,0.68844148]
[1768941180390,0.95400647,3000.3,2999.6,0.002]
[1768941181387,0.95400647,3000.3,2999.6,0.68844148]
[1768941181593,0.534,3000.3,2999.7,0.68644148]
[1768941181777,1.48800647,3000.3,2999.7,0.68644148]
[1768941181974,0.95400647,3000.2,2999.6,0.68844148]
[1768941182991,0.95400647,3000.6,2999.7,0.68644148]
[1768941183196,0.95400647,3000.6,2999.6,3.33577187]
[1768941183197,0.95400647,3000.6,2999.9,0.68644148]
[1768941184062,0.95400647,3000.6,2999.6,0.002]
[1768941184262,0.95400647,3000.6,2999.6,0.68844148]
[1768941186910,0.95400647,3000.6,2999.8,0.002]
[1768941188207,0.95400647,3000.6,2999.8,0.68844148]
[1768941189002,0.95400647,3000.6,2999.8,0.002]
[1768941189398,0.534,3000.5,2999.8,0.002]
[1768941189607,0.95400647,3000.4,2999.8,0.002]
[1768941189806,0.534,3000.5,2999.8,0.002]
[1768941189995,0.95400647,3000.4,2999.8,0.40441549]
[1768941190306,0.95400647,3000.4,2999.8,0.002]
[1768941191575,0.534,3000.3,2999.8,0.002]
[1768941191772,1.48800647,3000.3,2999.8,0.002]
[1768941191973,0.95400647,3000.2,2999.8,0.002]
[1768941192183,0.95400647,3000.2,2999.8,0.00100001]
[1768941192382,1.48800647,3000.3,2999.8,0.00100001]
[1768941192781,0.95400647,3000.2,2999.8,0.00100001]
[1768941195416,0.95400647,3000.2,2999.5,0.002]
[1768941196077,0.95400647,3000.2,2999.3,0.68844148]
[1768941198909,0.95400647,3000.2,2999.7,0.002]
[1768941202499,0.95400647,3000.2,2999.5,0.002]
[1768941202686,0.95400647,3000.2,2999.4,0.68644148]
[1768941202891,0.95400647,3000.2,2999.3,0.002]
[1768941203388,0.95400647,3000.2,2999.3,0.68844148]
[1768941205521,0.92870726,3000.0,2999.3,0.68844148]
[1768941206129,0.92870726,3000.0,2999.4,1e-08]
[1768941206628,0.92870726,3000.0,2999.3,0.002]
[1768941207306,0.92870726,3000.0,2999.2,0.002]
[1768941207307,0.92870726,2999.9,2999.0,0.002]
[1768941207508,0.92870726,2999.9,2998.4,0.002]
[1768941207705,23.35889476,3000.0,2998.4,0.002]
[1768941207706,0.92870726,2999.7,2998.4,0.002]
[1768941208019,0.92870726,2999.5,2998.4,0.002]
[1768941208350,0.92870726,2999.5,2997.4,3.33619369]
[1768941208351,0.92870726,2999.3,2997.4,3.33619369]
[1768941208547,0.92870726,2999.3,2997.5,0.00200001]
[1768941209415,0.534,2999.4,2997.0,3.33664873]
[1768941209416,0.92870726,2999.1,2997.0,0.00200001]
[1768941209740,0.92870726,2999.1,2997.3,3.3383147]
[1768941209938,0.92870726,2999.1,2997.4,0.33583148]
[1768941210118,0.92870726,2998.9,2997.4,0.33583148]
[1768941210447,0.92870726,2998.7,2997.4,0.33583148]
[1768941211511,0.92870726,2998.7,2998.1,0.002]
[1768941211512,0.92870726,2998.6,2998.1,0.002]
[1768941211704,0.92870726,2998.6,2997.4,0.00200001]
[1768941212106,0.92870726,2998.6,2997.0,0.00200001]
[1768941213409,0.92870726,2998.6,2997.1,0.00200001]
[1768941214218,4.26361464,2998.6,2997.1,0.00200001]
[1768941214420,0.92870726,2998.4,2997.1,0.00200001]
[1768941216126,0.96210726,2998.4,2997.1,0.00200001]
[1768941216349,0.96210726,2998.4,2996.8,3.33889268]
[1768941216350,4.29726855,2998.4,2996.8,3.33889268]
[1768941216524,0.92870726,2998.2,2996.9,0.00200001]
[1768941216849,0.92870726,2998.0,2997.0,0.33608928]
[1768941217214,0.92870726,2998.0,2997.0,0.00200001]
[1768941218225,0.534,2997.9,2997.0,0.00200001]
[1768941218521,0.92870726,2998.2,2997.0,0.00200001]
[1768941218862,0.0334,2998.4,2997.5,0.00200001]
[1768941219155,0.92870726,2999.0,2997.4,0.2335703]
[1768941219352,0.92870726,2999.2,2997.9,0.2335703]
[1768941220246,0.92870726,2999.2,2998.0,6.67111406]
[1768941220951,0.92870726,2999.2,2998.0,3.33555703]
[1768941221721,0.92870726,2999.2,2998.0,6.67111406]
[1768941221918,0.92870726,2999.2,2998.1,0.69046844]
[1768941222357,0.92870726,2999.2,2998.1,4.02587888]
[1768941223024,0.92870726,2999.2,2998.1,0.69046844]
[1768941223255,0.001,2998.2,2997.7,0.536]
[1768941223451,0.001,2998.2,2997.8,3.33577163]
[1768941223635,0.001,2998.2,2998.0,3.33555213]
[1768941223950,3.33369346,2999.7,2998.0,3.33555213]
[1768941224138,0.92870726,2999.5,2998.1,3.33544578]
[1768941224342,0.92870726,2999.5,2997.7,0.536]
[1768941224343,0.92870726,2999.5,2998.2,0.66709829]
[1768941224550,0.92870726,2999.5,2997.8,6.67155914]
[1768941226453,0.99460791,2999.3,2997.8,6.67155914]
[1768941226826,3.33379475,2999.6,2997.8,6.67155914]
[1768941226827,0.99460791,2999.1,2997.8,6.67155914]
[1768941227665,0.99460791,2999.0,2997.8,6.67155914]
[1768941229271,0.99460791,2999.0,2997.9,0.2335703]
[1768941229427,0.99460791,2999.2,2998.0,0.69051294]
[1768941230547,0.001,2999.9,2998.0,0.69051294]
[1768941230548,0.99460791,2999.4,2998.1,0.2335703]
[1768941230754,0.99460791,2999.4,2998.2,6.67066906]
[1768941232349,0.99460791,2999.4,2998.1,3.33539333]
[1768941232541,0.99460791,2999.4,2998.2,0.73613575]
[1768941232729,0.99460791,2999.4,2998.3,3.33522329]
[1768941233763,0.99460791,2999.4,2998.3,6.67044658]
[1768941234658,3.33446207,2999.9,2998.3,6.67044658]
[1768941234863,0.99560791,2999.9,2998.5,6.67000166]
[1768941235036,0.99560791,2999.9,2998.6,1.7465267]
[1768941235426,0.99460791,2999.1,2998.6,1.7465267]
[1768941235629,0.99460791,2999.1,2998.4,3.33510888]
[1768941235630,0.99460791,2999.1,2998.4,3.33505563]
[1768941236926,0.99460791,2999.1,2998.4,6.67016768]
[1768941237259,0.99460791,2999.1,2998.3,3.87118072]
[1768941237959,0.99460791,2999.1,2998.3,7.20640401]
[1768941238266,0.99460791,2999.1,2998.3,3.87118072]
[1768941238567,0.99460791,2999.1,2998.4,0.74420525]
[1768941238753,0.99460791,2999.1,2998.3,3.33522134]
[1768941239466,0.99460791,2999.1,2998.2,6.67265941]
[1768941240563,0.99460791,2999.1,2998.2,3.33732488]
[1768941240747,0.99460791,2999.1,2998.2,6.67265941]
[1768941241568,0.99560791,2999.2,2998.2,3.33732488]
[1768941241750,0.99560791,2999.2,2998.3,0.38733249]
[1768941242068,0.99560791,2999.2,2998.2,0.002]
[1768941243040,0.99460791,2999.1,2998.0,0.002]
[1768941246673,0.99460791,2999.1,2998.0,0.01868648]
[1768941247081,0.533,2999.0,2998.0,0.01868648]
[1768941247281,0.99460791,2998.9,2998.0,0.01868648]
[1768941247453,0.99460791,2998.9,2998.2,0.002]
[1768941247981,0.99460791,2998.9,2998.3,5.26035921]
[1768941248849,0.99460791,2998.9,2998.2,0.002]
[1768941256676,0.99460791,2998.9,2998.0,0.002]
[1768941259997,0.99460791,2998.9,2998.2,0.002]
[1768941260798,0.99560791,2998.9,2998.2,0.002]
[1768941269003,0.9080299,2998.8,2998.3,5.25947233]
[1768941269205,3.33382341,2999.6,2998.3,5.25947233]
[1768941269206,0.7353067,2999.4,2998.8,0.1727232]
[1768941269382,0.9080299,2999.8,2999.1,0.1727232]
[1768941271911,0.9080299,2999.8,2998.9,0.1727232]
[1768941272412,0.9080299,2999.5,2998.9,0.1727232]
[1768941272609,0.9080299,2999.5,2998.8,5.25947233]
[1768941272813,0.9080299,2999.5,2998.3,4.03398979]
[1768941273108,0.9080299,2999.4,2998.4,1.26307649]
[1768941273982,0.9080299,2999.4,2998.4,4.7708582]
[1768941274182,0.9080299,2999.4,2998.5,0.1727232]
[1768941274710,0.9080299,2999.4,2998.6,5.43219553]
[1768941275609,0.9080299,2999.4,2998.7,0.1727232]
[1768941275909,0.9080299,2999.4,2998.5,0.1727232]
[1768941276413,0.9080299,2999.4,2998.5,1.17576089]
[1768941276810,0.9080299,2999.4,2998.5,4.51075512]
[1768941277110,0.9080299,2999.4,2998.5,1.00303769]
[1768941278085,0.9080299,2999.4,2998.5,4.51074562]
[1768941278428,0.9080299,2999.4,2998.6,0.1727232]
[1768941280388,0.9080299,2999.3,2998.2,0.1747232]
[1768941280607,0.9080299,2999.1,2998.2,0.002]
[1768941281115,5.08425245,2999.2,2998.2,0.002]
[1768941281321,0.9080299,2998.9,2998.2,0.002]
[1768941281484,0.9080299,2998.8,2998.2,0.002]
[1768941281684,0.9080299,2998.8,2998.1,0.17388858]
[1768941282501,0.9080299,2998.8,2998.1,0.17288802]
[1768941283847,1.14975022,2998.9,2998.1,0.17288802]
[1768941283848,0.9080299,2998.5,2998.1,0.08128804]
[1768941287158,0.001,2999.2,2998.2,0.9354333]
[1768941287159,0.533,2998.7,2998.2,0.9354333]
[1768941287300,0.533,2998.7,2998.1,5.34076037]
[1768941287301,0.92664845,2999.1,2998.8,1e-08]
[1768941287650,1.46064845,2999.2,2998.8,1e-08]
[1768941288603,0.92664845,2999.1,2998.8,1e-08]
[1768941292635,0.92664845,2999.1,2998.4,0.9354333]
[1768941293740,0.92664845,2999.1,2998.5,1.37987809]
[1768941294815,0.001,2999.2,2998.6,0.9354333]
[1768941296439,0.001,2999.2,2998.6,0.9374333]
[1768941296645,0.001,2998.9,2998.6,0.9374333]
[1768941298040,0.001,2998.9,2998.6,0.47366921]
[1768941298418,0.92764845,2998.9,2998.6,0.002]
[1768941298631,0.92764845,2998.9,2998.4,0.002]
[1768941301308,0.001,2998.9,2998.4,0.62098901]
[1768941301512,0.001,2998.9,2998.5,1.03199534]
[1768941301713,0.001,2999.2,2998.6,0.61898901]
[1768941303046,0.92764845,2999.2,2998.4,0.002]
[1768941305638,0.92664845,2999.1,2998.0,0.002]
[1768941306248,0.92664845,2998.8,2997.4,0.61898901]
[1768941306429,0.92664845,2998.6,2997.7,0.61898901]
[1768941306823,0.92664845,2998.6,2997.5,0.79298119]
[1768941307024,0.92664845,2998.6,2997.5,0.17399218]
[1768941307253,0.92664845,2998.4,2997.5,1e-08]
[1768941307455,0.92664845,2998.4,2997.2,0.002]
[1768941307622,0.92664845,2998.2,2997.2,0.002]
[1768941307823,0.92664845,2998.0,2997.2,0.002]
[1768941308456,0.92664845,2998.0,2996.9,0.002]
[1768941308871,0.92664845,2998.0,2996.8,0.002]
[1768941309066,0.92664845,2998.0,2996.2,0.62298901]
[1768941309366,0.92664845,2997.7,2996.2,3.9605458]
[1768941309685,0.92664845,2997.7,2996.2,0.62298901]
[1768941309906,0.92664845,2997.7,2996.1,0.0008]
[1768941310474,0.92664845,2997.7,2996.1,0.62378901]
[1768941311002,0.92664845,2997.5,2996.5,0.62498901]
[1768941311678,0.92664845,2997.5,2996.5,0.002]
[1768941311878,0.7951061,2997.9,2996.5,0.002]
[1768941311879,0.92664845,2997.3,2996.5,0.62498901]
[1768941313466,0.92664845,2997.3,2996.1,3.33846176]
[1768941313666,0.92664845,2997.3,2996.3,0.46279006]
[1768941314192,0.92664845,2997.3,2996.4,0.46279006]
[1768941315491,0.92664845,2997.3,2996.5,0.46279006]
[1768941317005,0.0337,2997.3,2996.5,0.46279006]
[1768941317164,0.99907878,2997.8,2996.6,0.42909006]
[1768941317359,6.864,2997.9,2996.8,0.42909006]